[Event "European Union U14-ch 2024"]
[Site "Roznov pod Radhostem"]
[Date "2024.08.06"]
[Round "2.2"]
[White "Belocky, Daniel"]
[Black "Stara, Zuzana"]
[Result "1/2-1/2"]
[ECO "A46"]
[WhiteElo "1731"]
[BlackElo "2005"]
[Annotator "NA RC"]
[PlyCount "219"]
[EventDate "2024.08.02"]
[EventType "swiss"]
[EventCountry "CZE"]
[SourceTitle "playchess.com"]
[Source "ChessBase"]
[SourceQuality "1"]
[TimeControl "5400+30"]

1. d4 {[%emt 0:00:01]} Nf6 {[%emt 0:00:04]} 2. Bg5 {[%emt 0:00:05]} e6 {[%emt 0:00:21]} 3. Nf3 {[%emt 0:00:08]} d5 {[%emt 0:02:50]} 4. g3 {[%emt 0:00:05]} c5 {[%emt 0:09:21]} 5. Bg2 {[%emt 0:00:06]} h6 {[%emt 0:11:53]} 6. Bxf6 {[%emt 0:02:16]} Qxf6 {[%emt 0:00:29]} 7. c3 {[%emt 0:01:10]} Bd6 {[%emt 0:03:53]} 8. O-O {[%emt 0:01:24]} O-O {[%emt 0:00:33]} 9. e3 {[%emt 0:00:24]} Nc6 {[%emt 0:01:57]} 10. Nfd2 {[%emt 0:00:33]} cxd4 {[%emt 0:02:36]} 11. exd4 {[%emt 0:01:38]} Bd7 {[%emt 0:02:01]} 12. f4 {[%emt 0:00:39]} Ne7 {[%emt 0:04:11]} 13. Nf3 {[%emt 0:00:45]} Bb5 {[%emt 0:08:53]} 14. Re1 {[%emt 0:01:08]} Nf5 {[%emt 0:02:06]} 15. Ne5 {[%emt 0:01:26]} Bxe5 {[%emt 0:02:18]} 16. fxe5 {[%emt 0:00:40]} Qg5 {[%emt 0:01:42]} 17. Qd2 {[%emt 0:01:52]} Qxd2 {[%emt 0:13:39]} 18. Nxd2 {[%emt 0:00:48]} Rfc8 {[%emt 0:00:04]} 19. g4 {[%emt 0:01:33]} Nh4 {[%emt 0:01:45]} 20. Bf1 {[%emt 0:01:23]} Bxf1 {[%emt 0:05:31]} 21. Rxf1 {[%emt 0:00:24]} a5 {[%emt 0:00:37]} 22. Rf2 {[%emt 0:02:07]} a4 {[%emt 0:00:40]} 23. a3 {[%emt 0:00:08]} b5 {[%emt 0:03:14]} 24. Raf1 {[%emt 0:00:10]} Ra7 {[%emt 0:00:10]} 25. Nb1 {[%emt 0:00:57]} Rb7 {[%emt 0:01:42]} 26. h3 {[%emt 0:01:23]} Ng6 {[%emt 0:00:12]} 27. Kh2 {[%emt 0:00:44]} Nf8 {[%emt 0:01:08]} 28. Rf3 {[%emt 0:00:30]} Nh7 {[%emt 0:02:12]} 29. h4 {[%emt 0:00:09]} f6 {[%emt 0:01:26]} 30. Nd2 {[%emt 0:00:55]} fxe5 {[%emt 0:00:59]} 31. dxe5 {[%emt 0:00:19]} Nf8 {[%emt 0:00:19]} 32. Kg3 {[%emt 0:03:22]} Ng6 {[%emt 0:00:50]} 33. Re3 {[%emt 0:00:57]} Ne7 {[%emt 0:03:50]} 34. Rff3 {[%emt 0:01:29]} Nc6 {[%emt 0:01:28]} 35. Rf4 {[%emt 0:02:06]} Rd7 {[%emt 0:02:22]} 36. Nf3 {[%emt 0:00:30]} Rf7 {[%emt 0:06:05]} 37. Nd4 {[%emt 0:00:37]} Rxf4 {[%emt 0:04:18]} 38. Kxf4 {[%emt 0:00:29]} Nxd4 {[%emt 0:00:50]} 39. cxd4 {[%emt 0:00:07]} Rc4 {[%emt 0:00:40]} 40. Rd3 {[%emt 0:00:14]} Kf7 {[%emt 0:00:23]} 41. Ke3 {[%emt 0:00:38]} b4 {[%emt 0:00:44]} 42. b3 {[%emt 0:02:00]} axb3 {[%emt 0:00:36]} 43. Rxb3 {[%emt 0:00:06]} bxa3 {[%emt 0:00:34]} 44. Rxa3 {[%emt 0:00:06]} Rc7 {[%emt 0:00:28]} 45. h5 {[%emt 0:01:45]} g5 {[%emt 0:00:33]} 46. hxg6+ {[%emt 0:01:29]} Kxg6 {[%emt 0:00:05]} 47. Ra6 {[%emt 0:00:22]} Re7 {[%emt 0:00:28]} 48. Ra8 {[%emt 0:03:30]} Kg5 {[%emt 0:00:31]} 49. Rg8+ {[%emt 0:00:05]} Kh4 {[%emt 0:00:08]} 50. Rg6 {[%emt 0:02:21]} h5 {[%emt 0:00:16]} 51. Kf4 {[%emt 0:00:54]} Rf7+ {[%emt 0:00:30]} 52. Rf6 {[%emt 0:00:04]} Rg7 {[%emt 0:00:07]} 53. gxh5 {[%emt 0:00:19]} Rg4+ {[%emt 0:00:39]} 54. Ke3 {[%emt 0:00:17]} Kxh5 {[%emt 0:01:35]} 55. Rxe6 {[%emt 0:00:15]} Rg3+ {[%emt 0:00:16]} 56. Kd2 {[%emt 0:00:09]} Kg5 {[%emt 0:00:51]} 57. Rd6 {[%emt 0:00:23]} Kf5 {[%emt 0:00:21]} 58. Rxd5 {[%emt 0:00:09]} Ke4 {[%emt 0:00:36]} 59. Rd8 {[%emt 0:00:10]} Rg6 {[%emt 0:00:35]} 60. Kc3 {[%emt 0:00:17]} Rc6+ {[%emt 0:00:14]} 61. Kb4 {[%emt 0:00:44]} Rc7 {[%emt 0:00:05]} 62. e6 {[%emt 0:00:12]} Kf5 {[%emt 0:00:42]} 63. d5 {[%emt 0:00:11]} Kf6 {[%emt 0:00:23]} 64. Kb5 {[%emt 0:00:47]} Ke7 {[%emt 0:00:20]} 65. Rh8 {[%emt 0:00:19]} Kd6 {[%emt 0:00:13]} 66. Rh5 {[%emt 0:00:07]} Rc1 {[%emt 0:00:22]} 67. Kb6 {[%emt 0:04:07]} Rb1+ {[%emt 0:00:34]} 68. Ka7 {[%emt 0:00:07]} Rb2 {[%emt 0:01:26]} 69. Rh1 {[%emt 0:01:13]} Rd2 {[%emt 0:00:39]} 70. Re1 {[%emt 0:00:09]} Ke7 {[%emt 0:00:12]} 71. Re5 {[%emt 0:00:08]} Rb2 {[%emt 0:00:47]} 72. d6+ {[%emt 0:00:20]} Kxd6 {[%emt 0:00:35]} 73. e7 {[%emt 0:00:04]} Ra2+ {[%emt 0:00:24]} 74. Kb6 {[%emt 0:00:12]} Rb2+ {[%emt 0:00:29]} 75. Ka5 {[%emt 0:00:06]} Kxe5 {[%emt 0:00:24]} 76. e8=Q+ {[%emt 0:00:09]} Kd5 {[%emt 0:00:16]} 77. Qd7+ {[%emt 0:00:09]} Kc4 {[%emt 0:00:27]} 78. Qa4+ {[%emt 0:01:00]} Kc3 {[%emt 0:00:11]} 79. Qa3+ {[%emt 0:00:07]} Kc2 {[%emt 0:00:14]} 80. Qc5+ {[%emt 0:01:13]} Kb1 {[%emt 0:00:32]} 81. Qg1+ {[%emt 0:00:05]} Kc2 {[%emt 0:00:37]} 82. Qf2+ {[%emt 0:00:10]} Kc3 {[%emt 0:00:34]} 83. Qe3+ {[%emt 0:01:12]} Kc2 {[%emt 0:00:14]} 84. Ka4 {[%emt 0:01:01]} Kb1 {[%emt 0:01:18]} 85. Qd3+ {[%emt 0:02:36]} Kc1 {[%emt 0:00:34]} 86. Qh3 {[%emt 0:01:56]} Rd2 {[%emt 0:00:43]} 87. Qf1+ {[%emt 0:02:29]} Kc2 {[%emt 0:00:27]} 88. Ka3 {[%emt 0:00:55]} Rd3+ {[%emt 0:00:29]} 89. Ka2 {[%emt 0:00:35]} Kd2 {[%emt 0:00:34]} 90. Kb2 {[%emt 0:00:34]} Ke3 {[%emt 0:00:24]} 91. Qe1+ {[%emt 0:00:18]} Kf4 {[%emt 0:00:34]} 92. Kc2 {[%emt 0:00:41]} Rf3 {[%emt 0:00:23]} 93. Kd2 {[%emt 0:00:53]} Kg4 {[%emt 0:00:34]} 94. Qe4+ {[%emt 0:01:23]} Rf4 {[%emt 0:00:22]} 95. Qg6+ {[%emt 0:00:07]} Kh3 {[%emt 0:00:24]} 96. Ke3 {[%emt 0:00:43]} Rg4 {[%emt 0:00:24]} 97. Qh5+ {[%emt 0:00:34]} Kg3 {[%emt 0:00:20]} 98. Qh1 {[%emt 0:01:00]} Rg5 {[%emt 0:00:25]} 99. Qg1+ {[%emt 0:01:44]} Kh4 {[%emt 0:00:04]} 100. Qd1 {[%emt 0:00:08]} Rg4 {[%emt 0:00:42]} 101. Kf3 {[%emt 0:00:07]} Kh5 {[%emt 0:01:05]} 102. Ke3 {[%emt 0:00:47]} Kh4 {[%emt 0:00:44]} 103. Qd5 {[%emt 0:01:37]} Rg3+ {[%emt 0:00:24]} 104. Kf2 {[%emt 0:00:09]} Rg5 {[%emt 0:00:11]} 105. Qh1+ {[%emt 0:00:55]} Kg4 {[%emt 0:00:08]} 106. Qf3+ {[%emt 0:00:06]} Kh4 {[%emt 0:00:04]} 107. Qf6 {[%emt 0:00:40]} Kg4 {[%emt 0:00:18]} 108. Qf3+ {[%emt 0:01:09]} Kh4 {[%emt 0:00:04]} 109. Kf1 {[%emt 0:00:14]} Rg4 {[%emt 0:00:11]} 110. Kf2 {[%emt 0:01:07]} 1/2-1/2

[Event "European Union U14-ch 2024"]
[Site "Roznov pod Radhostem"]
[Date "2024.08.06"]
[Round "2.3"]
[White "Constantinoiu, Alexandru Ioan"]
[Black "Golub, Mia"]
[Result "1-0"]
[ECO "B42"]
[WhiteElo "1904"]
[BlackElo "1418"]
[Annotator "NA RC"]
[PlyCount "69"]
[EventDate "2024.08.02"]
[EventType "swiss"]
[EventCountry "CZE"]
[SourceTitle "playchess.com"]
[Source "ChessBase"]
[SourceQuality "1"]
[TimeControl "5400+30"]

1. e4 {[%emt 0:00:04]} c5 {[%emt 0:00:08]} 2. Nf3 {[%emt 0:00:12]} e6 {[%emt 0:00:18]} 3. d4 {[%emt 0:00:16]} cxd4 {[%emt 0:01:12]} 4. Nxd4 {[%emt 0:00:14]} a6 {[%emt 0:02:04]} 5. Bd3 {[%emt 0:00:26]} Nf6 {[%emt 0:04:15]} 6. Nc3 {[%emt 0:01:01]} d6 {[%emt 0:00:50]} 7. Be3 {[%emt 0:01:17]} Be7 {[%emt 0:01:45]} 8. Qe2 {[%emt 0:00:31]} b5 {[%emt 0:01:38]} 9. a3 {[%emt 0:00:42]} Bb7 {[%emt 0:02:59]} 10. O-O-O {[%emt 0:06:56]} O-O {[%emt 0:03:32]} 11. g4 {[%emt 0:05:40]} Nc6 {[%emt 0:03:21]} 12. g5 {[%emt 0:02:48]} Nd7 {[%emt 0:03:26]} 13. h4 {[%emt 0:10:20]} Nc5 {[%emt 0:04:38]} 14. f4 {[%emt 0:07:51]} Nxd3+ {[%emt 0:07:07]} 15. Qxd3 {[%emt 0:04:44]} Nxd4 {[%emt 0:04:32]} 16. Bxd4 {[%emt 0:05:59]} f5 {[%emt 0:03:33]} 17. gxf6 {[%emt 0:04:11]} Bxf6 {[%emt 0:01:15]} 18. Qh3 {[%emt 0:03:29]} Qe7 {[%emt 0:06:02]} 19. e5 {[%emt 0:22:17]} dxe5 {[%emt 0:03:34]} 20. fxe5 {[%emt 0:00:06]} Bxe5 {[%emt 0:04:11]} 21. Bxe5 {[%emt 0:01:17]} Bxh1 {[%emt 0:00:19]} 22. Bd6 {[%emt 0:01:25]} Qf7 {[%emt 0:04:05]} 23. Qxh1 {[%emt 0:01:33]} Rfd8 {[%emt 0:02:41]} 24. Rf1 {[%emt 0:02:01]} Qg6 {[%emt 0:02:58]} 25. Ne4 {[%emt 0:01:33]} Rac8 {[%emt 0:03:31]} 26. h5 {[%emt 0:02:06]} Qh6+ {[%emt 0:03:55]} 27. Bf4 {[%emt 0:01:02]} g5 {[%emt 0:03:01]} 28. Bxg5 {[%emt 0:00:33]} Qg7 {[%emt 0:02:43]} 29. Bxd8 {[%emt 0:00:28]} Rxd8 {[%emt 0:00:17]} 30. Rg1 {[%emt 0:00:10]} Rf8 {[%emt 0:02:17]} 31. Rxg7+ {[%emt 0:00:16]} Kxg7 {[%emt 0:00:11]} 32. Qg1+ {[%emt 0:00:02]} Kh8 {[%emt 0:00:24]} 33. h6 {[%emt 0:00:10]} Rg8 {[%emt 0:01:36]} 34. Qd4+ {[%emt 0:00:02]} Rg7 {[%emt 0:00:26]} 35. Qxg7# {[%emt 0:00:06]} 1-0

[Event "European Union U14-ch 2024"]
[Site "Roznov pod Radhostem"]
[Date "2024.08.06"]
[Round "2.4"]
[White "Bartova, Hana"]
[Black "Boros, David"]
[Result "0-1"]
[ECO "C11"]
[WhiteElo "1796"]
[BlackElo "1796"]
[Annotator "NA RC"]
[PlyCount "69"]
[EventDate "2024.08.02"]
[EventType "swiss"]
[EventCountry "CZE"]
[SourceTitle "playchess.com"]
[Source "ChessBase"]
[SourceQuality "1"]
[TimeControl "5400+30"]

1. e4 {[%emt 0:00:03]} Nf6 {[%emt 0:00:15]} 2. Nc3 {[%emt 0:00:19]} d5 {[%emt 0:00:13]} 3. e5 {[%emt 0:03:02]} Nfd7 {[%emt 0:01:18]} 4. d4 {[%emt 0:02:41]} c5 {[%emt 0:02:38]} 5. f4 {[%emt 0:16:29]} e6 {[%emt 0:05:46]} 6. Be3 {[%emt 0:03:40]} Nc6 {[%emt 0:07:21]} 7. Nf3 {[%emt 0:04:01]} a6 {[%emt 0:11:31]} 8. Qd2 {[%emt 0:08:43]} b5 {[%emt 0:07:08]} 9. dxc5 {[%emt 0:24:41]} Bxc5 {[%emt 0:07:42]} 10. Bxc5 {[%emt 0:01:13]} Nxc5 {[%emt 0:00:23]} 11. Nd4 {[%emt 0:02:21]} Bb7 {[%emt 0:13:53]} 12. Nxc6 {[%emt 0:03:04]} Bxc6 {[%emt 0:02:00]} 13. Qd4 {[%emt 0:00:21]} Qb6 {[%emt 0:06:22]} 14. O-O-O {[%emt 0:02:35]} b4 {[%emt 0:02:52]} 15. Ne2 {[%emt 0:02:13]} O-O {[%emt 0:03:10]} 16. Ng3 {[%emt 0:03:15]} Rfc8 {[%emt 0:07:58]} 17. Kb1 {[%emt 0:03:27]} Ba4 {[%emt 0:04:43]} 18. b3 {[%emt 0:02:04]} Qc6 {[%emt 0:01:28]} 19. Bd3 {[%emt 0:05:46]} Nxd3 {[%emt 0:05:49]} 20. Qxd3 {[%emt 0:00:02]} Bb5 {[%emt 0:00:31]} 21. Qd2 {[%emt 0:00:09]} a5 {[%emt 0:00:42]} 22. Ne2 {[%emt 0:03:34]} Bxe2 {[%emt 0:03:40]} 23. Qxe2 {[%emt 0:00:01]} a4 {[%emt 0:00:23]} 24. Qd2 {[%emt 0:02:14]} axb3 {[%emt 0:01:26]} 25. cxb3 {[%emt 0:00:17]} Qa6 {[%emt 0:01:55]} 26. Rc1 {[%emt 0:00:46]} Rc3 {[%emt 0:00:48]} 27. Rhd1 {[%emt 0:02:21]} d4 {[%emt 0:01:16]} 28. Qb2 {[%emt 0:01:29]} Rac8 {[%emt 0:00:36]} 29. Rxc3 {[%emt 0:01:43]} bxc3 {[%emt 0:00:17]} 30. Qc2 {[%emt 0:00:26]} Qb6 {[%emt 0:00:47]} 31. Ka1 {[%emt 0:02:17]} Qc5 {[%emt 0:00:29]} 32. Kb1 {[%emt 0:00:16]} h6 {[%emt 0:00:20]} 33. Rc1 {[%emt 0:00:30]} Qd5 {[%emt 0:00:21]} 34. Rd1 {[%emt 0:00:22]} Rc6 {[%emt 0:00:30]} 35. Rd3 0-1

[Event "European Union U14-ch 2024"]
[Site "Roznov pod Radhostem"]
[Date "2024.08.06"]
[Round "2.5"]
[White "Barteckova, Nikol"]
[Black "Pritulina, Nadezhda"]
[Result "0-1"]
[ECO "B01"]
[WhiteElo "1669"]
[BlackElo "1589"]
[Annotator "NA RC"]
[PlyCount "98"]
[EventDate "2024.08.02"]
[EventType "swiss"]
[EventCountry "CZE"]
[SourceTitle "playchess.com"]
[Source "ChessBase"]
[SourceQuality "1"]
[TimeControl "5400+30"]

1. e4 {[%emt 0:00:01]} d5 {[%emt 0:00:03]} 2. exd5 {[%emt 0:00:06]} Qxd5 {[%emt 0:00:03]} 3. Nc3 {[%emt 0:00:14]} Qd6 {[%emt 0:00:05]} 4. d4 {[%emt 0:00:40]} Nf6 {[%emt 0:00:23]} 5. Nf3 {[%emt 0:01:38]} Bg4 {[%emt 0:02:42]} 6. Be2 {[%emt 0:02:00]} c6 {[%emt 0:00:17]} 7. O-O {[%emt 0:02:04]} e6 {[%emt 0:00:16]} 8. Re1 {[%emt 0:01:54]} Be7 {[%emt 0:01:11]} 9. h3 {[%emt 0:04:47]} Bf5 {[%emt 0:03:29]} 10. Nh4 {[%emt 0:09:38]} Bg6 {[%emt 0:02:34]} 11. Nxg6 {[%emt 0:00:22]} hxg6 {[%emt 0:00:06]} 12. Bf3 {[%emt 0:01:41]} Nbd7 {[%emt 0:06:28]} 13. b3 {[%emt 0:10:03]} Nd5 {[%emt 0:05:17]} 14. Ne4 {[%emt 0:03:59]} Qc7 {[%emt 0:00:39]} 15. c4 {[%emt 0:00:45]} Nf4 {[%emt 0:00:24]} 16. Qd2 {[%emt 0:13:32]} g5 {[%emt 0:00:11]} 17. Bb2 {[%emt 0:00:58]} O-O-O {[%emt 0:11:07]} 18. Qc2 {[%emt 0:06:50]} f5 {[%emt 0:04:15]} 19. Ng3 {[%emt 0:01:22]} Bf6 {[%emt 0:01:32]} 20. Rad1 {[%emt 0:02:44]} g6 {[%emt 0:02:56]} 21. b4 {[%emt 0:07:02]} Nb6 {[%emt 0:10:03]} 22. a3 {[%emt 0:05:26]} Qg7 {[%emt 0:02:20]} 23. b5 {[%emt 0:06:12]} Bxd4 {[%emt 0:03:55]} 24. Bxd4 {[%emt 0:00:10]} Rxd4 {[%emt 0:00:09]} 25. bxc6 {[%emt 0:03:15]} bxc6 {[%emt 0:00:31]} 26. Rxd4 {[%emt 0:01:59]} Qxd4 {[%emt 0:00:09]} 27. Rc1 {[%emt 0:11:06]} Qd3 {[%emt 0:06:52]} 28. Qb2 {[%emt 0:00:49]} Rh7 {[%emt 0:03:45]} 29. Qb4 {[%emt 0:01:31]} Nxh3+ {[%emt 0:04:21]} 30. gxh3 {[%emt 0:00:13]} Qxf3 {[%emt 0:00:05]} 31. Qf8+ {[%emt 0:01:12]} Kb7 {[%emt 0:00:11]} 32. Qg8 {[%emt 0:00:35]} Rxh3 {[%emt 0:00:29]} 33. Qxe6 {[%emt 0:01:02]} Qxa3 {[%emt 0:06:19]} 34. Rd1 {[%emt 0:00:47]} Rxg3+ {[%emt 0:07:07]} 35. fxg3 {[%emt 0:00:02]} Qxg3+ {[%emt 0:00:07]} 36. Kh1 {[%emt 0:00:50]} Qf3+ {[%emt 0:00:13]} 37. Kh2 {[%emt 0:00:07]} Qxd1 {[%emt 0:00:29]} 38. Qxg6 {[%emt 0:00:11]} Qe2+ {[%emt 0:00:23]} 39. Kg1 {[%emt 0:00:08]} Qxc4 {[%emt 0:00:07]} 40. Qg7+ {[%emt 0:00:49]} Ka6 {[%emt 0:00:08]} 41. Qa1+ {[%emt 0:00:12]} Qa4 {[%emt 0:00:10]} 42. Qf1+ {[%emt 0:00:08]} Qb5 {[%emt 0:00:21]} 43. Qa1+ {[%emt 0:00:14]} Na4 {[%emt 0:00:08]} 44. Qe1 {[%emt 0:00:59]} g4 {[%emt 0:01:29]} 45. Qe8 {[%emt 0:00:15]} Qb1+ {[%emt 0:02:09]} 46. Kf2 {[%emt 0:00:28]} Qc2+ {[%emt 0:03:26]} 47. Kf1 {[%emt 0:01:02]} Nb6 {[%emt 0:01:30]} 48. Qh8 {[%emt 0:00:40]} g3 {[%emt 0:00:27]} 49. Qa1+ {[%emt 0:00:17]} Na4 {[%emt 0:00:52]} 0-1

[Event "European Union U14-ch 2024"]
[Site "Roznov pod Radhostem"]
[Date "2024.08.06"]
[Round "2.6"]
[White "Kincses, Emma"]
[Black "Duchatel, Maxime"]
[Result "1-0"]
[ECO "D02"]
[WhiteElo "1618"]
[BlackElo "1682"]
[Annotator "NA RC"]
[PlyCount "61"]
[EventDate "2024.08.02"]
[EventType "swiss"]
[EventCountry "CZE"]
[SourceTitle "playchess.com"]
[Source "ChessBase"]
[SourceQuality "1"]
[TimeControl "5400+30"]

1. d4 {[%emt 0:00:03]} d5 {[%emt 0:00:10]} 2. Nf3 {[%emt 0:00:06]} e6 {[%emt 0:00:07]} 3. g3 {[%emt 0:00:06]} c6 {[%emt 0:00:12]} 4. Bg2 {[%emt 0:00:08]} f5 {[%emt 0:00:31]} 5. O-O {[%emt 0:01:21]} Nf6 {[%emt 0:00:07]} 6. b3 {[%emt 0:00:33]} Bd6 {[%emt 0:00:18]} 7. Bb2 {[%emt 0:00:06]} b6 {[%emt 0:01:58]} 8. Nbd2 {[%emt 0:00:49]} O-O {[%emt 0:00:45]} 9. c4 {[%emt 0:01:54]} Ne4 {[%emt 0:02:45]} 10. Rc1 {[%emt 0:03:01]} Bb7 {[%emt 0:03:52]} 11. Rc2 {[%emt 0:08:16]} Nd7 {[%emt 0:04:13]} 12. Qa1 {[%emt 0:02:02]} Rf6 {[%emt 0:09:02]} 13. c5 {[%emt 0:05:54]} Bc7 {[%emt 0:00:08]} 14. b4 {[%emt 0:12:36]} Rg6 {[%emt 0:05:58]} 15. cxb6 {[%emt 0:02:30]} axb6 {[%emt 0:05:50]} 16. a3 Bd6 {[%emt 0:04:46]} 17. Qc1 {[%emt 0:04:52]} Rc8 {[%emt 0:06:21]} 18. Nb1 {[%emt 0:03:56]} Qf6 {[%emt 0:05:32]} 19. Nc3 {[%emt 0:01:43]} f4 {[%emt 0:08:19]} 20. b5 {[%emt 0:07:58]} Nb8 {[%emt 0:06:43]} 21. Nxe4 {[%emt 0:13:03]} dxe4 {[%emt 0:00:48]} 22. Ne5 {[%emt 0:00:41]} Bxe5 {[%emt 0:02:02]} 23. dxe5 {[%emt 0:00:47]} Qg5 {[%emt 0:02:24]} 24. Bxe4 {[%emt 0:01:46]} fxg3 {[%emt 0:10:15]} 25. hxg3 {[%emt 0:08:58]} Qxc1 {[%emt 0:03:17]} 26. Rfxc1 {[%emt 0:00:17]} Rg4 {[%emt 0:00:51]} 27. Bf3 {[%emt 0:00:09]} Rg6 {[%emt 0:01:19]} 28. bxc6 {[%emt 0:01:36]} Ba6 {[%emt 0:01:07]} 29. Rd2 {[%emt 0:00:42]} Bb5 {[%emt 0:00:28]} 30. c7 {[%emt 0:01:31]} Nd7 {[%emt 0:00:44]} 31. Bb7 {[%emt 0:00:15]} 1-0

[Event "European Union U14-ch 2024"]
[Site "Roznov pod Radhostem"]
[Date "2024.08.06"]
[Round "2.7"]
[White "Ochkova, Maria"]
[Black "Madel, Luca"]
[Result "0-1"]
[ECO "C01"]
[WhiteElo "1553"]
[BlackElo "1628"]
[Annotator "NA RC"]
[PlyCount "60"]
[EventDate "2024.08.02"]
[EventType "swiss"]
[EventCountry "CZE"]
[SourceTitle "playchess.com"]
[Source "ChessBase"]
[SourceQuality "1"]
[TimeControl "5400+30"]

1. e4 {[%emt 0:00:02]} e6 {[%emt 0:00:08]} 2. d4 {[%emt 0:00:05]} d5 {[%emt 0:00:05]} 3. exd5 {[%emt 0:00:05]} exd5 {[%emt 0:00:07]} 4. Nf3 {[%emt 0:00:15]} Bd6 {[%emt 0:00:55]} 5. Bd3 {[%emt 0:00:09]} Ne7 {[%emt 0:00:14]} 6. Bg5 {[%emt 0:00:39]} f6 {[%emt 0:00:43]} 7. Bh4 {[%emt 0:00:23]} O-O {[%emt 0:00:18]} 8. O-O {[%emt 0:00:29]} Nbc6 {[%emt 0:01:16]} 9. c3 {[%emt 0:00:55]} Bf5 {[%emt 0:02:07]} 10. Re1 {[%emt 0:12:47]} Qd7 {[%emt 0:02:17]} 11. c4 {[%emt 0:05:59]} Bxd3 {[%emt 0:03:09]} 12. Qxd3 {[%emt 0:00:14]} dxc4 {[%emt 0:01:31]} 13. Qxc4+ {[%emt 0:00:31]} Kh8 {[%emt 0:07:55]} 14. Nc3 {[%emt 0:05:34]} Nf5 {[%emt 0:01:41]} 15. d5 {[%emt 0:10:09]} Ne5 {[%emt 0:01:39]} 16. Nxe5 {[%emt 0:00:44]} Bxe5 {[%emt 0:00:24]} 17. f4 {[%emt 0:07:49]} Bxc3 {[%emt 0:01:03]} 18. bxc3 {[%emt 0:02:27]} Nxh4 {[%emt 0:00:16]} 19. Re6 {[%emt 0:00:32]} Nf5 {[%emt 0:01:38]} 20. Rae1 {[%emt 0:03:00]} Nd6 {[%emt 0:08:32]} 21. Qd3 {[%emt 0:04:10]} Rfe8 {[%emt 0:00:27]} 22. c4 {[%emt 0:01:05]} Rxe6 {[%emt 0:02:20]} 23. dxe6 {[%emt 0:01:54]} Qc6 {[%emt 0:00:45]} 24. Rc1 {[%emt 0:04:04]} Re8 {[%emt 0:01:26]} 25. f5 {[%emt 0:01:03]} Qc5+ {[%emt 0:00:27]} 26. Kh1 {[%emt 0:00:21]} Qxf5 {[%emt 0:00:23]} 27. Qxf5 {[%emt 0:00:29]} Nxf5 {[%emt 0:00:07]} 28. Rd1 {[%emt 0:00:09]} g6 {[%emt 0:00:57]} 29. h3 {[%emt 0:02:51]} Ng7 {[%emt 0:01:24]} 30. Rd7 {[%emt 0:02:26]} Nxe6 {[%emt 0:00:19]} 0-1

[Event "European Union U14-ch 2024"]
[Site "Roznov pod Radhostem"]
[Date "2024.08.07"]
[Round "3.1"]
[White "Boros, David"]
[Black "Bocquenet-Drouode, Hugo"]
[Result "0-1"]
[ECO "B22"]
[WhiteElo "1796"]
[BlackElo "2025"]
[Annotator "NA RC"]
[PlyCount "66"]
[EventDate "2024.08.02"]
[EventType "swiss"]
[EventCountry "CZE"]
[SourceTitle "playchess.com"]
[Source "ChessBase"]
[SourceQuality "1"]
[TimeControl "5400+30"]

1. e4 {[%emt 0:00:07]} c5 {[%emt 0:00:04]} 2. c3 {[%emt 0:00:27]} Nf6 {[%emt 0:00:04]} 3. e5 {[%emt 0:00:33]} Nd5 {[%emt 0:00:08]} 4. d4 {[%emt 0:02:31]} cxd4 {[%emt 0:00:14]} 5. cxd4 {[%emt 0:00:19]} d6 {[%emt 0:02:47]} 6. Nf3 {[%emt 0:08:20]} Nc6 {[%emt 0:00:46]} 7. h3 {[%emt 0:07:49]} Bf5 {[%emt 0:19:47]} 8. a3 {[%emt 0:15:12]} e6 {[%emt 0:04:27]} 9. exd6 {[%emt 0:06:44]} Qxd6 {[%emt 0:02:44]} 10. Nc3 {[%emt 0:02:24]} Be7 {[%emt 0:05:22]} 11. Bd3 {[%emt 0:01:52]} Bxd3 {[%emt 0:06:35]} 12. Qxd3 {[%emt 0:00:16]} Rd8 {[%emt 0:03:37]} 13. O-O {[%emt 0:06:24]} h6 {[%emt 0:06:13]} 14. Re1 {[%emt 0:08:49]} O-O {[%emt 0:01:45]} 15. Ne4 {[%emt 0:08:23]} Qc7 {[%emt 0:05:16]} 16. Bd2 {[%emt 0:03:34]} Nf6 {[%emt 0:11:49]} 17. Rac1 {[%emt 0:03:11]} Qb6 {[%emt 0:07:48]} 18. Bc3 {[%emt 0:02:13]} Rd5 {[%emt 0:01:29]} 19. Ng3 {[%emt 0:05:08]} Rfd8 {[%emt 0:02:17]} 20. Rcd1 {[%emt 0:02:57]} Bd6 {[%emt 0:03:53]} 21. Ne4 {[%emt 0:03:39]} Be7 {[%emt 0:01:16]} 22. Qc2 {[%emt 0:03:10]} Nxe4 {[%emt 0:01:22]} 23. Rxe4 {[%emt 0:02:25]} Bf6 {[%emt 0:00:43]} 24. Qa4 {[%emt 0:01:08]} e5 {[%emt 0:02:22]} 25. Rde1 {[%emt 0:03:36]} exd4 {[%emt 0:02:31]} 26. Re8+ {[%emt 0:00:49]} Rxe8 {[%emt 0:01:12]} 27. Rxe8+ {[%emt 0:00:22]} Kh7 {[%emt 0:00:07]} 28. Qc4 {[%emt 0:00:47]} Qb5 {[%emt 0:01:10]} 29. Qxb5 {[%emt 0:01:02]} Rxb5 {[%emt 0:00:06]} 30. Bb4 {[%emt 0:00:39]} Nxb4 {[%emt 0:00:14]} 31. axb4 {[%emt 0:00:05]} Rxb4 {[%emt 0:00:05]} 32. Re4 {[%emt 0:00:29]} Rxb2 {[%emt 0:00:18]} 33. Nxd4 {[%emt 0:00:10]} Rb4 {[%emt 0:00:18]} 0-1

[Event "European Union U14-ch 2024"]
[Site "Roznov pod Radhostem"]
[Date "2024.08.07"]
[Round "3.2"]
[White "Stara, Zuzana"]
[Black "Constantinoiu, Alexandru Ioan"]
[Result "0-1"]
[ECO "B93"]
[WhiteElo "2005"]
[BlackElo "1904"]
[Annotator "NA RC"]
[PlyCount "50"]
[EventDate "2024.08.02"]
[EventType "swiss"]
[EventCountry "CZE"]
[SourceTitle "playchess.com"]
[Source "ChessBase"]
[SourceQuality "1"]
[TimeControl "5400+30"]

1. e4 {[%emt 0:00:01]} c5 {[%emt 0:00:18]} 2. Nf3 {[%emt 0:00:03]} d6 {[%emt 0:00:18]} 3. d4 {[%emt 0:00:05]} cxd4 {[%emt 0:00:13]} 4. Nxd4 {[%emt 0:00:03]} Nf6 {[%emt 0:00:13]} 5. Nc3 {[%emt 0:00:06]} a6 {[%emt 0:00:12]} 6. f4 {[%emt 0:00:06]} e6 {[%emt 0:07:59]} 7. Qf3 {[%emt 0:00:09]} Qc7 {[%emt 0:05:23]} 8. Be3 {[%emt 0:01:34]} b5 {[%emt 0:06:27]} 9. a3 {[%emt 0:00:14]} Nbd7 {[%emt 0:03:35]} 10. Nb3 {[%emt 0:12:38]} Bb7 {[%emt 0:02:16]} 11. O-O-O {[%emt 0:08:34]} Nc5 {[%emt 0:07:30]} 12. Nd2 {[%emt 0:44:59]} Rc8 {[%emt 0:05:23]} 13. Bxc5 {[%emt 0:03:10]} dxc5 {[%emt 0:01:47]} 14. g4 {[%emt 0:01:50]} b4 {[%emt 0:09:02]} 15. Ncb1 {[%emt 0:02:19]} Bd6 {[%emt 0:06:36]} 16. f5 {[%emt 0:04:32]} Bf4 {[%emt 0:01:43]} 17. Re1 {[%emt 0:04:08]} Rd8 {[%emt 0:05:20]} 18. axb4 {[%emt 0:03:42]} Qd6 {[%emt 0:05:28]} 19. Qe2 {[%emt 0:05:07]} Nxe4 {[%emt 0:02:09]} 20. Rd1 {[%emt 0:01:39]} Nxd2 {[%emt 0:00:25]} 21. Nxd2 {[%emt 0:00:09]} Bxh1 {[%emt 0:01:22]} 22. bxc5 {[%emt 0:00:29]} Bxd2+ {[%emt 0:01:03]} 23. Kb1 {[%emt 0:01:16]} Qc6 {[%emt 0:02:12]} 24. fxe6 {[%emt 0:00:41]} Bf3 {[%emt 0:02:58]} 25. exf7+ {[%emt 0:00:11]} Kf8 {[%emt 0:01:23]} 0-1